Department Family,Entity,Date of Payment,Expense Type,Expense Area,Supplier,Transaction Number,Amount in Sterling,Line Description
ECGD,ECGD,11 Jan 22,Recoverable Expense (ACBS) - OTHER,PMD,Aergo Capital Limited,         845,"93,169.53",Recoverable Expense
ECGD,ECGD,25 Jan 22,Recoverable Expense (ACBS) - OTHER,PMD,The Boeing Company,         866,"30,810.76",Recoverable Expense
ECGD,ECGD,24 Jan 22,Recoverable Expense (ACBS) - LEGAL,LD,White & Case London,         867,"38,814.08",Recoverable Legal Services
ECGD,ECGD,24 Jan 22,Recoverable Expense (ACBS) - LEGAL,LD,White & Case London,         868,"38,814.08",Recoverable Legal Services
ECGD,ECGD,24 Jan 22,Recoverable Expense (ACBS) - LEGAL,LD,White & Case London,         869,"38,814.10",Recoverable Legal Services
ECGD,ECGD,24 Jan 22,Recoverable Expense (ACBS) - LEGAL,LD,White & Case London,         870,"38,814.10",Recoverable Legal Services
ECGD,ECGD,24 Jan 22,Recoverable Expense (ACBS) - LEGAL,LD,White & Case LLP USD,         874,"30,111.61",Recoverable Legal Services
ECGD,ECGD,31 Jan 22,Recoverable Expense (ACBS) - LEGAL,LD,White & Case London,         882,"54,682.08",Recoverable Legal Services
ECGD,ECGD,31 Jan 22,Recoverable Expense (ACBS) - OTHER,PMD,Maples Fiduciary Services (Ireland),         883,"35,703.29",Recoverable Expense
ECGD,ECGD,31 Jan 22,Recoverable Expense (ACBS) - OTHER,PMD,Maples Fiduciary Services (Ireland),         884,"35,145.12",Recoverable Expense
ECGD,ECGD,4 Jan 22,Shared Services Costs,HRD,Department for International Trade,       81723,"37,850.02",Q3 - Internal Procurements costs - Legal project
ECGD,ECGD,4 Jan 22,Shared Services Costs,HRD,Department for International Trade,       81724,"35,237.50",Q3 - Internal Procurement charges
ECGD,ECGD,4 Jan 22,Agency - Interim Managers,HRD,Alexander Mann Solutions,       81725,"1,308.84",Interim Staff
ECGD,ECGD,4 Jan 22,Agency - Interim Managers,HRD,Alexander Mann Solutions,       81725,"1,990.44",Interim Staff
ECGD,ECGD,4 Jan 22,Agency - Interim Managers,HRD,Alexander Mann Solutions,       81725,"2,100.20",Interim Staff
ECGD,ECGD,4 Jan 22,Agency - Interim Managers,HRD,Alexander Mann Solutions,       81725,"2,637.70",Interim Staff
ECGD,ECGD,4 Jan 22,Agency - Interim Managers,HRD,Alexander Mann Solutions,       81725,"2,668.45",Interim Staff
ECGD,ECGD,4 Jan 22,Agency - Specialist Contractors,HRD,Alexander Mann Solutions,       81725,564.61,Interim Staff
ECGD,ECGD,4 Jan 22,Agency - Specialist Contractors,HRD,Alexander Mann Solutions,       81725,"2,362.70",Interim Staff
ECGD,ECGD,4 Jan 22,Agency - Specialist Contractors,HRD,Alexander Mann Solutions,       81725,"2,797.90",Interim Staff
ECGD,ECGD,4 Jan 22,Agency - Specialist Contractors,HRD,Alexander Mann Solutions,       81725,"2,951.35",Interim Staff
ECGD,ECGD,4 Jan 22,Agency - Specialist Contractors,HRD,Alexander Mann Solutions,       81725,"3,249.65",Interim Staff
ECGD,ECGD,4 Jan 22,Agency - Specialist Contractors,HRD,Alexander Mann Solutions,       81725,"4,423.20",Interim Staff
ECGD,ECGD,4 Jan 22,Agency - Specialist Contractors,HRD,Alexander Mann Solutions,       81725,"4,976.10",Interim Staff
ECGD,ECGD,4 Jan 22,Agency - Temporary Staff,HRD,Alexander Mann Solutions,       81725,327.13,Interim Staff
ECGD,ECGD,4 Jan 22,Agency - Temporary Staff,HRD,Alexander Mann Solutions,       81725,519.30,Interim Staff
ECGD,ECGD,4 Jan 22,Agency - Temporary Staff,HRD,Alexander Mann Solutions,       81725,552.90,Interim Staff
ECGD,ECGD,4 Jan 22,Agency - Temporary Staff,HRD,Alexander Mann Solutions,       81725,557.26,Interim Staff
ECGD,ECGD,4 Jan 22,Agency - Temporary Staff,HRD,Alexander Mann Solutions,       81725,589.76,Interim Staff
ECGD,ECGD,4 Jan 22,Agency - Temporary Staff,HRD,Alexander Mann Solutions,       81725,645.05,Interim Staff
ECGD,ECGD,4 Jan 22,Agency - Temporary Staff,HRD,Alexander Mann Solutions,       81725,691.13,Interim Staff
ECGD,ECGD,4 Jan 22,Agency - Temporary Staff,HRD,Alexander Mann Solutions,       81725,691.13,Interim Staff
ECGD,ECGD,18 Jan 22,Agency - Interim Managers,HRD,Alexander Mann Solutions,       81737,945.08,Interim Staff
ECGD,ECGD,18 Jan 22,Agency - Interim Managers,HRD,Alexander Mann Solutions,       81737,"1,260.12",Interim Staff
ECGD,ECGD,18 Jan 22,Agency - Interim Managers,HRD,Alexander Mann Solutions,       81737,"1,803.30",Interim Staff
ECGD,ECGD,18 Jan 22,Agency - Interim Managers,HRD,Alexander Mann Solutions,       81737,"3,005.50",Interim Staff
ECGD,ECGD,18 Jan 22,Agency - Interim Managers,HRD,Alexander Mann Solutions,       81737,"3,005.50",Interim Staff
ECGD,ECGD,18 Jan 22,Agency - Specialist Contractors,HRD,Alexander Mann Solutions,       81737,"1,417.62",Interim Staff
ECGD,ECGD,18 Jan 22,Agency - Specialist Contractors,HRD,Alexander Mann Solutions,       81737,"1,437.16",Interim Staff
ECGD,ECGD,18 Jan 22,Agency - Specialist Contractors,HRD,Alexander Mann Solutions,       81737,"1,492.83",Interim Staff
ECGD,ECGD,18 Jan 22,Agency - Specialist Contractors,HRD,Alexander Mann Solutions,       81737,"1,693.83",Interim Staff
ECGD,ECGD,18 Jan 22,Agency - Specialist Contractors,HRD,Alexander Mann Solutions,       81737,"1,770.81",Interim Staff
ECGD,ECGD,18 Jan 22,Agency - Specialist Contractors,HRD,Alexander Mann Solutions,       81737,"2,653.92",Interim Staff
ECGD,ECGD,18 Jan 22,Agency - Temporary Staff,HRD,Alexander Mann Solutions,       81737,278.63,Interim Staff
ECGD,ECGD,18 Jan 22,Agency - Temporary Staff,HRD,Alexander Mann Solutions,       81737,346.20,Interim Staff
ECGD,ECGD,18 Jan 22,Agency - Temporary Staff,HRD,Alexander Mann Solutions,       81737,387.03,Interim Staff
ECGD,ECGD,18 Jan 22,Agency - Temporary Staff,HRD,Alexander Mann Solutions,       81737,387.03,Interim Staff
ECGD,ECGD,18 Jan 22,Agency - Temporary Staff,HRD,Alexander Mann Solutions,       81737,414.68,Interim Staff
ECGD,ECGD,18 Jan 22,Agency - Temporary Staff,HRD,Alexander Mann Solutions,       81737,425.03,Interim Staff
ECGD,ECGD,18 Jan 22,Agency - Temporary Staff,HRD,Alexander Mann Solutions,       81737,661.15,Interim Staff
ECGD,ECGD,18 Jan 22,Overseas Export Managers,OCCMC,Foreign & Commonwealth Office,       81739,"62,529.49",Overseas  Staff
ECGD,ECGD,18 Jan 22,IT Managed Services,ID,Risual Ltd,       81752,"26,280.00",IT Systems
ECGD,ECGD,18 Jan 22,Online costs,Risk Approval Division,S&P Global Market Intelligence,       81756,"63,668.22",Country Risk Assesments
ECGD,ECGD,18 Jan 22,Overseas Export Managers,OCCMC,Green Park Interim & Executive Searc,       81763,"24,634.05",Overseas  Staff
ECGD,ECGD,19 Jan 22,IT Cloud and Hosting,ID,Bytes Software Services Ltd,       81766,"62,787.45",IT Systems
ECGD,ECGD,19 Jan 22,Shared Services Costs,HRD,Department for International Trade,       81772,"82,500.00",Internal Procurement charges - Ins project
ECGD,ECGD,19 Jan 22,Agency - Interim Managers,HRD,Alexander Mann Solutions,       81775,"1,680.16",Interim Staff
ECGD,ECGD,19 Jan 22,Agency - Interim Managers,HRD,Alexander Mann Solutions,       81775,"1,890.16",Interim Staff
ECGD,ECGD,19 Jan 22,Agency - Interim Managers,HRD,Alexander Mann Solutions,       81775,"1,990.44",Interim Staff
ECGD,ECGD,19 Jan 22,Agency - Interim Managers,HRD,Alexander Mann Solutions,       81775,"2,134.76",Interim Staff
ECGD,ECGD,19 Jan 22,Agency - Interim Managers,HRD,Alexander Mann Solutions,       81775,"2,181.40",Interim Staff
ECGD,ECGD,19 Jan 22,Agency - Interim Managers,HRD,Alexander Mann Solutions,       81775,"2,404.40",Interim Staff
ECGD,ECGD,19 Jan 22,Agency - Interim Managers,HRD,Alexander Mann Solutions,       81775,"2,637.70",Interim Staff
ECGD,ECGD,19 Jan 22,Agency - Specialist Contractors,HRD,Alexander Mann Solutions,       81775,"1,119.16",Interim Staff
ECGD,ECGD,19 Jan 22,Agency - Specialist Contractors,HRD,Alexander Mann Solutions,       81775,"1,890.16",Interim Staff
ECGD,ECGD,19 Jan 22,Agency - Specialist Contractors,HRD,Alexander Mann Solutions,       81775,"2,238.32",Interim Staff
ECGD,ECGD,19 Jan 22,Agency - Specialist Contractors,HRD,Alexander Mann Solutions,       81775,"2,238.32",Interim Staff
ECGD,ECGD,19 Jan 22,Agency - Specialist Contractors,HRD,Alexander Mann Solutions,       81775,"2,258.44",Interim Staff
ECGD,ECGD,19 Jan 22,Agency - Specialist Contractors,HRD,Alexander Mann Solutions,       81775,"2,361.08",Interim Staff
ECGD,ECGD,19 Jan 22,Agency - Specialist Contractors,HRD,Alexander Mann Solutions,       81775,"2,599.72",Interim Staff
ECGD,ECGD,19 Jan 22,Agency - Specialist Contractors,HRD,Alexander Mann Solutions,       81775,"2,797.90",Interim Staff
ECGD,ECGD,19 Jan 22,Agency - Specialist Contractors,HRD,Alexander Mann Solutions,       81775,"2,874.32",Interim Staff
ECGD,ECGD,19 Jan 22,Agency - Specialist Contractors,HRD,Alexander Mann Solutions,       81775,"2,875.08",Interim Staff
ECGD,ECGD,19 Jan 22,Agency - Specialist Contractors,HRD,Alexander Mann Solutions,       81775,"3,538.56",Interim Staff
ECGD,ECGD,19 Jan 22,Agency - Specialist Contractors,HRD,Alexander Mann Solutions,       81775,"3,980.88",Interim Staff
ECGD,ECGD,19 Jan 22,Agency - Temporary Staff,HRD,Alexander Mann Solutions,       81775,473.66,Interim Staff
ECGD,ECGD,19 Jan 22,Agency - Temporary Staff,HRD,Alexander Mann Solutions,       81775,516.04,Interim Staff
ECGD,ECGD,19 Jan 22,Agency - Temporary Staff,HRD,Alexander Mann Solutions,       81775,534.47,Interim Staff
ECGD,ECGD,19 Jan 22,Agency - Temporary Staff,HRD,Alexander Mann Solutions,       81775,557.26,Interim Staff
ECGD,ECGD,19 Jan 22,Agency - Temporary Staff,HRD,Alexander Mann Solutions,       81775,585.59,Interim Staff
ECGD,ECGD,19 Jan 22,Agency - Temporary Staff,HRD,Alexander Mann Solutions,       81775,691.13,Interim Staff
ECGD,ECGD,19 Jan 22,Agency - Temporary Staff,HRD,Alexander Mann Solutions,       81775,692.40,Interim Staff
ECGD,ECGD,19 Jan 22,Agency - Temporary Staff,HRD,Alexander Mann Solutions,       81775,796.61,Interim Staff
ECGD,ECGD,19 Jan 22,Agency - Temporary Staff,HRD,Alexander Mann Solutions,       81775,796.61,Interim Staff
ECGD,ECGD,24 Jan 22,Learning and Development,HRD,Cabinet Office,       81780,"30,540.00",Internal - L&D Costs
ECGD,ECGD,24 Jan 22,Marketing,SPoCC,IPSOS MORI - MARKET & OPINION RESEAR,81788,"24,437.50",Qualitative SME survey
ECGD,ECGD,25 Jan 22,Agency - Interim Managers,HRD,Alexander Mann Solutions,       81803,472.54,Interim Staff
ECGD,ECGD,25 Jan 22,Agency - Interim Managers,HRD,Alexander Mann Solutions,       81803,"1,745.12",Interim Staff
ECGD,ECGD,25 Jan 22,Agency - Interim Managers,HRD,Alexander Mann Solutions,       81803,"2,100.20",Interim Staff
ECGD,ECGD,25 Jan 22,Agency - Interim Managers,HRD,Alexander Mann Solutions,       81803,"3,317.40",Interim Staff
ECGD,ECGD,25 Jan 22,Agency - Specialist Contractors,HRD,Alexander Mann Solutions,       81803,"1,693.83",Interim Staff
ECGD,ECGD,25 Jan 22,Agency - Specialist Contractors,HRD,Alexander Mann Solutions,       81803,"2,238.32",Interim Staff
ECGD,ECGD,25 Jan 22,Agency - Specialist Contractors,HRD,Alexander Mann Solutions,       81803,"2,310.20",Interim Staff
ECGD,ECGD,25 Jan 22,Agency - Specialist Contractors,HRD,Alexander Mann Solutions,       81803,"2,362.70",Interim Staff
ECGD,ECGD,25 Jan 22,Agency - Specialist Contractors,HRD,Alexander Mann Solutions,       81803,"2,540.75",Interim Staff
ECGD,ECGD,25 Jan 22,Agency - Specialist Contractors,HRD,Alexander Mann Solutions,       81803,"2,797.90",Interim Staff
ECGD,ECGD,25 Jan 22,Agency - Specialist Contractors,HRD,Alexander Mann Solutions,       81803,"2,823.05",Interim Staff
ECGD,ECGD,25 Jan 22,Agency - Specialist Contractors,HRD,Alexander Mann Solutions,       81803,"2,823.05",Interim Staff
ECGD,ECGD,25 Jan 22,Agency - Specialist Contractors,HRD,Alexander Mann Solutions,       81803,"2,823.05",Interim Staff
ECGD,ECGD,25 Jan 22,Agency - Specialist Contractors,HRD,Alexander Mann Solutions,       81803,"2,951.35",Interim Staff
ECGD,ECGD,25 Jan 22,Agency - Specialist Contractors,HRD,Alexander Mann Solutions,       81803,"3,249.65",Interim Staff
ECGD,ECGD,25 Jan 22,Agency - Specialist Contractors,HRD,Alexander Mann Solutions,       81803,"3,593.85",Interim Staff
ECGD,ECGD,25 Jan 22,Agency - Specialist Contractors,HRD,Alexander Mann Solutions,       81803,"4,423.20",Interim Staff
ECGD,ECGD,25 Jan 22,Agency - Specialist Contractors,HRD,Alexander Mann Solutions,       81803,"4,976.10",Interim Staff
ECGD,ECGD,25 Jan 22,Agency - Temporary Staff,HRD,Alexander Mann Solutions,       81803,645.05,Interim Staff
ECGD,ECGD,25 Jan 22,Agency - Temporary Staff,HRD,Alexander Mann Solutions,       81803,645.05,Interim Staff
ECGD,ECGD,25 Jan 22,Agency - Temporary Staff,HRD,Alexander Mann Solutions,       81803,663.48,Interim Staff
ECGD,ECGD,25 Jan 22,Agency - Temporary Staff,HRD,Alexander Mann Solutions,       81803,691.13,Interim Staff
ECGD,ECGD,25 Jan 22,Agency - Temporary Staff,HRD,Alexander Mann Solutions,       81803,698.93,Interim Staff
ECGD,ECGD,25 Jan 22,Agency - Temporary Staff,HRD,Alexander Mann Solutions,       81803,703.65,Interim Staff
ECGD,ECGD,25 Jan 22,Agency - Temporary Staff,HRD,Alexander Mann Solutions,       81803,923.20,Interim Staff
ECGD,ECGD,25 Jan 22,IT Software Licensing & Subscription,ID,Fidelity National Info Services,       81817,"85,386.43",IT Systems
ECGD,ECGD,31 Jan 22,Change Board Projects,Change Board,Bytes Software Services Ltd,       81824,"86,516.95",Project IT services
ECGD,ECGD,31 Jan 22,Agency - Interim Managers,HRD,Alexander Mann Solutions,       81834,"2,100.20",Interim Staff
ECGD,ECGD,31 Jan 22,Agency - Interim Managers,HRD,Alexander Mann Solutions,       81834,"2,110.16",Interim Staff
ECGD,ECGD,31 Jan 22,Agency - Interim Managers,HRD,Alexander Mann Solutions,       81834,"2,181.40",Interim Staff
ECGD,ECGD,31 Jan 22,Agency - Interim Managers,HRD,Alexander Mann Solutions,       81834,"2,362.70",Interim Staff
ECGD,ECGD,31 Jan 22,Agency - Interim Managers,HRD,Alexander Mann Solutions,       81834,"2,362.70",Interim Staff
ECGD,ECGD,31 Jan 22,Agency - Interim Managers,HRD,Alexander Mann Solutions,       81834,"2,637.70",Interim Staff
ECGD,ECGD,31 Jan 22,Agency - Interim Managers,HRD,Alexander Mann Solutions,       81834,"2,668.45",Interim Staff
ECGD,ECGD,31 Jan 22,Agency - Interim Managers,HRD,Alexander Mann Solutions,       81834,"3,005.50",Interim Staff
ECGD,ECGD,31 Jan 22,Agency - Interim Managers,HRD,Alexander Mann Solutions,       81834,"3,005.50",Interim Staff
ECGD,ECGD,31 Jan 22,Agency - Interim Managers,HRD,Alexander Mann Solutions,       81834,"3,317.40",Interim Staff
ECGD,ECGD,31 Jan 22,Agency - Specialist Contractors,HRD,Alexander Mann Solutions,       81834,75.00,Interim Staff
ECGD,ECGD,31 Jan 22,Agency - Specialist Contractors,HRD,Alexander Mann Solutions,       81834,"2,156.31",Interim Staff
ECGD,ECGD,31 Jan 22,Agency - Specialist Contractors,HRD,Alexander Mann Solutions,       81834,"2,238.32",Interim Staff
ECGD,ECGD,31 Jan 22,Agency - Specialist Contractors,HRD,Alexander Mann Solutions,       81834,"2,362.70",Interim Staff
ECGD,ECGD,31 Jan 22,Agency - Specialist Contractors,HRD,Alexander Mann Solutions,       81834,"2,797.90",Interim Staff
ECGD,ECGD,31 Jan 22,Agency - Specialist Contractors,HRD,Alexander Mann Solutions,       81834,"2,823.05",Interim Staff
ECGD,ECGD,31 Jan 22,Agency - Specialist Contractors,HRD,Alexander Mann Solutions,       81834,"2,823.05",Interim Staff
ECGD,ECGD,31 Jan 22,Agency - Specialist Contractors,HRD,Alexander Mann Solutions,       81834,"2,874.32",Interim Staff
ECGD,ECGD,31 Jan 22,Agency - Specialist Contractors,HRD,Alexander Mann Solutions,       81834,"2,887.75",Interim Staff
ECGD,ECGD,31 Jan 22,Agency - Specialist Contractors,HRD,Alexander Mann Solutions,       81834,"2,951.35",Interim Staff
ECGD,ECGD,31 Jan 22,Agency - Specialist Contractors,HRD,Alexander Mann Solutions,       81834,"4,423.20",Interim Staff
ECGD,ECGD,31 Jan 22,Agency - Specialist Contractors,HRD,Alexander Mann Solutions,       81834,"4,976.10",Interim Staff
ECGD,ECGD,31 Jan 22,Agency - Temporary Staff,HRD,Alexander Mann Solutions,       81834,23.00,Interim Staff
ECGD,ECGD,31 Jan 22,Agency - Temporary Staff,HRD,Alexander Mann Solutions,       81834,571.42,Interim Staff
ECGD,ECGD,31 Jan 22,Agency - Temporary Staff,HRD,Alexander Mann Solutions,       81834,645.05,Interim Staff
ECGD,ECGD,31 Jan 22,Agency - Temporary Staff,HRD,Alexander Mann Solutions,       81834,645.05,Interim Staff
ECGD,ECGD,31 Jan 22,Agency - Temporary Staff,HRD,Alexander Mann Solutions,       81834,645.05,Interim Staff
ECGD,ECGD,31 Jan 22,Agency - Temporary Staff,HRD,Alexander Mann Solutions,       81834,718.77,Interim Staff
ECGD,ECGD,31 Jan 22,Agency - Temporary Staff,HRD,Alexander Mann Solutions,       81834,807.80,Interim Staff
ECGD,ECGD,31 Jan 22,IT Managed Services,ID,Littlefish (UK) Ltd,       81837,"52,214.54",IT Systems
ECGD,ECGD,31 Jan 22,Legal Fees claims,LD,Government Legal Department,       81838,"23,272.77",Legal Services
ECGD,ECGD,31 Jan 22,Change Board Projects,Change Board,cxpartners Limited,81840,"31,550.00",Project IT services
9 Feb 22,,,- 1 -,,,,,
